bitfinex/quotes_ETHUSD_20220109
["timestamp","ask_amount","ask_price","bid_price","bid_amount"]
[1641713861192,11.3587318,3125.7,3125.5,0.00284212]
[1641713861397,11.0587318,3125.7,3125.5,0.00284212]
[1641713861595,11.3587318,3125.7,3125.5,0.00284212]
[1641713862493,11.0587318,3125.7,3125.5,0.00284212]
[1641713862693,11.0587318,3125.7,3125.5,1.20988182]
[1641713862694,2.0587318,3125.7,3125.5,1.20988182]
[1641713863096,2.0587318,3125.7,3125.6,0.0022737]
[1641713863335,2.0587318,3125.7,3125.5,1.60908163]
[1641713863539,2.0587318,3125.7,3125.5,1.51135533]
[1641713864337,2.0587318,3125.7,3125.5,1.21080014]
[1641713864938,2.0587318,3125.7,3125.6,1.21080014]
[1641713865538,2.0587318,3125.7,3125.5,1.21080014]
[1641713866138,2.0587318,3125.7,3125.2,1.17855771]
[1641713866139,2.0587318,3125.7,3125.3,1.21080014]
[1641713866339,1.6006671,3125.5,3125.3,1.21080014]
[1641713866540,1.6006671,3125.5,3125.4,0.00113685]
[1641713867990,1.6006671,3125.5,3125.3,0.00170527]
[1641713868189,1.6006671,3125.5,3125.4,1.21178597]
[1641713868691,0.80032,3125.5,3125.4,1.21178597]
[1641713869690,2.49906756,3125.7,3125.3,1.21349124]
[1641713870089,2.49906756,3125.7,3125.3,0.00170527]
[1641713870940,1.60069,3125.5,3125.3,0.00170527]
[1641713871142,2.4010381,3125.5,3125.3,0.00170527]
[1641713871441,2.3510381,3125.5,3125.3,0.00170527]
[1641713871640,2.3510381,3125.5,3125.2,1.19097451]
[1641713872340,3.1514181,3125.5,3125.2,1.19097451]
[1641713872539,3.1514181,3125.5,3125.0,4.93175487]
[1641713872740,0.80043,3125.3,3125.0,4.93175487]
[1641713872940,1.60084,3125.3,3125.1,0.00113685]
[1641713873740,2.4012495,3125.3,3125.1,0.00113685]
[1641713873941,3.2016895,3125.3,3125.1,0.00113685]
[1641713874340,3.1516895,3125.3,3125.1,0.00113685]
[1641713874989,2.4014842,3125.2,3125.0,0.00170527]
[1641713875887,0.8005,3125.2,3125.0,0.00170527]
[1641713876891,0.8005,3125.2,3125.0,1.61993499]
[1641713877491,0.8005,3125.2,3125.0,2.727951]
[1641713878948,0.8005,3125.2,3125.1,1.61822972]
[1641713880150,0.8005,3125.2,3125.0,5.14165813]
[1641713880849,0.8005,3125.2,3125.0,2.727951]
[1641713881649,0.8005,3125.2,3125.1,6.37624573]
[1641713882099,0.8005,3125.2,3125.1,2.72624573]
[1641713882595,1.596,3125.9,3125.2,15.7004]
[1641713882796,0.458,3126.4,3125.2,15.7004]
[1641713882997,0.00113685,3125.5,3125.2,15.7004]
[1641713883395,0.00113685,3125.5,3125.3,7.20178319]
[1641713884598,0.00113685,3125.5,3125.4,21.69807397]
[1641713884798,1.32394607,3126.5,3125.5,9.05]
[1641713884998,1.32394607,3126.5,3125.6,0.80007]
[1641713885298,0.00454739,3126.3,3126.2,1.16675115]
[1641713886348,0.80464739,3126.3,3126.2,1.16675115]
[1641713886944,0.80464739,3126.3,3126.2,3.89299688]
[1641713887344,0.80464739,3126.3,3126.2,1.16675115]
[1641713887947,0.80464739,3126.3,3126.2,3.89299688]
[1641713888446,0.80464739,3126.3,3126.2,1.16675115]
[1641713889153,0.80464739,3126.3,3126.2,3.89299688]
[1641713889593,0.80464739,3126.3,3126.2,1.16675115]
[1641713890394,0.80464739,3126.3,3126.2,3.89299688]
[1641713890995,0.80464739,3126.3,3126.2,1.16675115]
[1641713891396,1.8683768,3126.6,3126.3,12.65]
[1641713891798,0.00113684,3126.5,3126.3,12.65]
[1641713892194,0.00113684,3126.5,3126.4,12.1]
[1641713892494,0.00113684,3126.5,3126.4,2.72624573]
[1641713893099,0.00113684,3126.5,3126.4,9.32624573]
[1641713893347,0.00113684,3126.5,3126.4,2.72624573]
[1641713893549,0.00113684,3126.5,3126.3,2.72624573]
[1641713897387,0.00113684,3126.5,3126.4,5.32184103]
[1641713898189,0.00113684,3126.5,3126.4,6.82624573]
[1641713900089,0.00113684,3126.5,3126.4,12.07624573]
[1641713900488,0.00113684,3126.5,3126.4,6.82624573]
[1641713901856,0.00113684,3126.5,3126.4,8.04637856]
[1641713902454,0.00113684,3126.5,3126.4,8.75237856]
[1641713903054,0.00113684,3126.5,3126.4,21.05237856]
[1641713903256,0.00113684,3126.5,3126.4,19.83224573]
[1641713904356,0.06595402,3127.0,3126.5,17.42285368]
[1641713904597,0.76574402,3127.5,3126.7,0.79977]
[1641713904793,0.0022737,3126.9,3126.7,0.79977]
[1641713905291,0.00170527,3126.8,3126.7,17.19977]
[1641713905693,1.596,3127.7,3127.5,0.0017]
[1641713905994,5.5367846,3128.5,3127.5,0.0017]
[1641713905995,1.596,3128.9,3128.6,12.44292532]
[1641713906193,1.596,3128.9,3128.6,13.43712532]
[1641713906394,1.59896,3129.2,3128.6,13.43712532]
[1641713906592,1.59896,3129.2,3128.7,1.27556344]
[1641713906794,1.59896,3129.2,3128.6,12.44292532]
[1641713906795,2.75700848,3129.1,3128.6,12.44292532]
[1641713907195,0.01250532,3129.0,3128.6,12.44292532]
[1641713907392,2.05746,3128.9,3128.6,12.44292532]
[1641713907592,2.0693969,3128.9,3128.6,12.44292532]
[1641713907793,0.81107477,3128.8,3128.6,12.44292532]
[1641713907995,10.158,3128.7,3128.6,12.44292532]
[1641713908236,10.46880005,3128.7,3128.6,12.44292532]
[1641713908436,11.53812591,3128.7,3128.6,12.44292532]
[1641713909438,16.05097246,3128.7,3128.6,1.03244532]
[1641713909638,0.7998589,3128.2,3127.7,2.36174929]
[1641713909847,0.79987,3128.0,3127.7,2.36174929]
[1641713910140,0.00625266,3127.9,3127.7,2.36174929]
[1641713910339,0.458,3127.8,3127.7,2.36174929]
[1641713910542,0.76368424,3127.8,3127.7,2.36174929]
[1641713910939,1.89882399,3127.8,3127.7,2.36174929]
[1641713911140,1.29882399,3127.8,3127.7,2.36174929]
[1641713911339,1.59882399,3127.8,3127.7,2.36174929]
[1641713911542,1.89882399,3127.8,3127.7,2.36174929]
[1641713911740,1.59882399,3127.8,3127.7,2.36174929]
[1641713912003,1.29882399,3127.8,3127.7,2.36174929]
[1641713914194,1.59882399,3127.8,3127.7,2.36174929]
[1641713914795,1.29882399,3127.8,3127.7,2.36174929]
[1641713916039,1.29882399,3127.8,3127.7,3.6722152]
[1641713918044,0.84082399,3127.8,3127.7,3.6722152]
[1641713918242,0.00568424,3127.8,3127.7,6.39658327]
[1641713918742,0.00568424,3127.8,3127.7,8.70282144]
[1641713918943,0.00568424,3127.8,3127.7,13.60282144]
[1641713919893,0.00568424,3127.8,3127.7,25.10282144]
[1641713920692,0.00568424,3127.8,3127.7,28.84702144]
[1641713921093,0.06522021,3128.3,3127.7,32.93401623]
[1641713921494,0.06522021,3128.3,3127.9,0.7994638]
[1641713921495,0.00227369,3128.2,3127.9,0.7994638]
[1641713921694,0.00227369,3128.2,3128.0,2.76495829]
[1641713921997,0.00170527,3128.1,3128.0,2.76495829]
[1641713922194,0.00170527,3128.1,3128.0,5.48932636]
[1641713922794,0.00170527,3128.1,3128.0,21.88932636]
[1641713923943,0.00170527,3128.1,3128.0,27.19466936]
[1641713924943,0.00170527,3128.1,3128.0,21.88932636]
[1641713925149,0.39675725,3129.2,3128.9,1.08577003]
[1641713925344,6.0,3129.3,3128.9,1.08577003]
[1641713925543,1.0,3129.2,3128.9,1.08577003]
[1641713925943,0.00568423,3129.1,3128.9,1.08577003]
[1641713926345,0.00511581,3129.0,3128.9,1.08577003]
[1641713926545,0.00511581,3129.0,3128.9,3.65121448]
[1641713926744,0.00511581,3129.0,3128.9,9.10121448]
[1641713927293,0.00511581,3129.0,3128.9,3.65121448]
[1641713927798,0.00511581,3129.0,3128.9,7.48577003]
[1641713927997,0.00511581,3129.0,3128.9,1.08577003]
[1641713928798,0.00511581,3129.0,3128.9,6.68577003]
[1641713930099,0.00511581,3129.0,3128.9,1.08577003]
[1641713930748,0.00511581,3129.0,3128.6,1.21341973]
[1641713930951,0.00511581,3129.0,3128.4,1.21341973]
[1641713931250,0.00454739,3128.9,3128.4,1.21341973]
[1641713931448,0.00454739,3128.9,3128.5,2.27356104]
[1641713931651,0.00397896,3128.8,3128.5,3.36626104]
[1641713932149,0.00341054,3128.7,3128.5,4.16556104]
[1641713932349,0.00341054,3128.7,3128.6,18.87011676]
[1641713932547,6.0,3129.3,3128.6,20.08353649]
[1641713932748,6.0,3129.3,3128.7,1.30876053]
[1641713932951,5.9,3129.3,3129.2,1.1171918]
[1641713933149,5.9,3129.3,3129.2,2.0894918]
[1641713933349,5.90682108,3129.3,3129.2,0.9723]
[1641713934601,5.90682108,3129.3,3129.1,0.2357]
[1641713934602,6.70619108,3129.3,3129.0,1.24432443]
[1641713934898,0.00625266,3129.2,3129.0,1.24432443]
[1641713935296,0.00568423,3129.1,3129.0,1.24432443]
[1641713937297,0.00568423,3129.1,3128.7,2.29820657]
[1641713937698,0.00511581,3129.0,3128.7,2.29820657]
[1641713938100,0.00454739,3128.9,3128.6,6.48261973]
[1641713938543,6.69937,3129.3,3128.6,6.48261973]
[1641713938544,0.00397896,3128.8,3128.6,6.48261973]
[1641713938743,0.00397896,3128.8,3128.7,10.26932933]
[1641713938944,6.69937,3129.3,3128.7,10.26932933]
[1641713939343,0.00625266,3129.2,3128.8,2.394703]
[1641713939551,0.00625266,3129.2,3128.8,0.7992445]
[1641713939844,0.00568423,3129.1,3128.8,0.7992445]
[1641713940245,0.00511581,3129.0,3128.8,0.7992445]
[1641713940651,0.00454739,3128.9,3128.8,0.7992445]
[1641713941446,0.00454739,3128.9,3128.7,15.95483412]
[1641713941746,5.96376884,3129.3,3128.8,11.21488518]
[1641713942005,5.96376884,3129.3,3129.2,1.02823531]
[1641713942403,5.97058992,3129.3,3129.2,1.02823531]
[1641713942602,5.97058992,3129.3,3129.2,20.10165743]
[1641713943208,5.90682108,3129.3,3129.2,20.10165743]
[1641713943405,5.90682108,3129.3,3129.2,7.83865222]
[1641713944204,5.90682108,3129.3,3129.2,3.75165743]
[1641713944606,5.90682108,3129.3,3129.2,13.21236026]
[1641713944805,5.90682108,3129.3,3129.2,13.21569362]
[1641713945004,5.90682108,3129.3,3129.2,3.75165743]
[1641713947647,5.90682108,3129.3,3129.2,2.72342212]
[1641713949248,5.90682108,3129.3,3128.7,2.72342212]
[1641713949510,0.79943,3129.0,3128.7,2.72342212]
[1641713949895,0.00454739,3128.9,3128.7,2.72342212]
[1641713950295,0.00397896,3128.8,3128.7,2.72342212]
[1641713951497,0.00397896,3128.8,3128.6,2.72342212]
[1641713951996,0.00341054,3128.7,3128.6,2.72342212]
[1641713952395,0.00341054,3128.7,3128.6,7.72342212]
[1641713952597,0.00341054,3128.7,3128.6,2.72342212]
[1641713953446,0.00341054,3128.7,3128.6,9.72342212]
[1641713953845,0.00341054,3128.7,3128.6,7.0]
[1641713954745,0.00341054,3128.7,3128.6,9.72342212]
[1641713961346,0.00341054,3128.7,3128.6,10.93684185]
[1641713961743,0.00341054,3128.7,3128.6,3.93684185]
[1641713962846,0.07272066,3128.7,3128.6,1.21341973]
[1641713963044,1.33029656,3128.7,3128.6,1.21341973]
[1641713963344,9.8,3128.6,3128.4,3.29590613]
[1641713963545,8.90771,3128.5,3128.1,2.43706431]
[1641713963743,8.90771,3128.5,3127.5,0.0017]
[1641713963744,0.65541803,3128.2,3127.5,0.0017]
[1641713963948,0.79972,3128.3,3127.5,0.0017]
[1641713964145,0.3,3128.2,3127.8,0.00170527]
[1641713964805,1.0997129,3128.2,3127.8,0.00170527]
[1641713965207,0.79971,3128.0,3127.8,0.00170527]
[1641713965607,1.79971,3128.0,3127.8,0.00170527]
[1641713965806,0.76508443,3128.0,3127.8,0.00170527]
[1641713966004,6.76915753,3127.9,3127.8,0.00170527]
[1641713966206,7.22715753,3127.9,3127.8,0.00170527]
[1641713966407,7.29646765,3127.9,3127.8,0.00170527]
[1641713966610,4.52731012,3127.9,3127.8,0.00170527]
[1641713966908,6.21025166,3127.9,3127.8,0.00170527]
[1641713967206,7.5226919,3127.9,3127.8,0.00170527]
[1641713967408,6.83975036,3127.9,3127.8,0.00170527]
[1641713967608,5.458,3127.9,3127.8,0.00170527]
[1641713967808,0.458,3127.9,3127.8,0.00170527]
[1641713969250,5.358,3127.9,3127.8,0.00170527]
[1641713969449,8.21488409,3127.9,3127.8,0.00170527]
[1641713969648,9.51488409,3127.9,3127.8,0.00170527]
[1641713970047,6.958,3127.9,3127.8,0.00170527]
[1641713970947,0.458,3127.9,3127.8,0.00170527]
[1641713975746,0.758,3127.9,3127.8,0.00170527]
[1641713976142,7.36108933,3127.9,3127.8,0.00170527]
[1641713976345,7.36108933,3127.9,3127.5,0.0017]
[1641713976346,8.2,3127.8,3127.5,0.0017]
[1641713976543,13.71934022,3127.8,3127.5,0.0017]
[1641713976742,13.78830979,3127.8,3127.5,0.0017]
[1641713977147,3.1999,3127.7,3127.5,0.0017]
[1641713977344,9.74150717,3127.6,3127.5,0.0017]
[1641713977544,4.51047674,3127.6,3127.5,0.0017]
[1641713977742,4.51047674,3127.6,3127.5,0.00340527]
[1641713978844,5.31045674,3127.6,3127.5,0.00340527]
[1641713979243,10.66045674,3127.6,3127.5,0.00340527]
[1641713979898,11.49573116,3127.6,3127.5,0.00340527]
[1641713980096,6.14573116,3127.6,3127.5,0.00340527]
[1641713980497,3.46222399,3127.6,3127.5,0.00340527]
[1641713981098,3.00422399,3127.6,3127.5,0.00340527]
[1641713981297,1.70422399,3127.6,3127.5,0.00340527]
[1641713981498,0.79998,3127.6,3127.5,0.00340527]
[1641713986648,0.458,3127.9,3127.5,0.00340527]
[1641713986848,0.00170527,3128.4,3127.5,1.09870527]
[1641713987108,0.00170527,3128.4,3127.6,2.53331977]
[1641713987309,0.00284211,3128.3,3127.6,2.53331977]
[1641713987708,0.00227369,3128.2,3127.6,6.44721977]
[1641713988110,0.79959,3128.4,3128.1,7.48030772]
[1641713988510,0.00284211,3128.3,3128.1,7.48030772]
[1641713988909,0.00227369,3128.2,3128.1,7.48030772]
[1641713990210,0.00227369,3128.2,3128.1,1.23030772]
[1641713990848,0.00227369,3128.2,3128.1,3.46164417]
[1641713991048,0.00227369,3128.2,3128.1,17.26164417]
[1641713991847,0.00227369,3128.2,3128.1,15.03030772]
[1641713994693,0.00227369,3128.2,3128.1,1.23030772]
[1641713994895,0.00227369,3128.2,3128.1,9.88030772]
[1641713995697,0.00227369,3128.2,3128.1,1.23030772]
[1641713995896,0.00227369,3128.2,3128.1,11.43030772]
[1641713998848,0.00227369,3128.2,3128.1,15.93030772]
[1641713999047,0.00227369,3128.2,3128.1,11.43030772]
[1641713999848,0.00227369,3128.2,3128.1,7.03030772]
[1641714003796,0.00227369,3128.2,3128.1,19.82077931]
[1641714003995,0.00227369,3128.2,3128.1,20.57417931]
[1641714005396,0.00227369,3128.2,3128.1,27.38424448]
[1641714006046,5.13106822,3129.3,3129.0,1.18623804]
[1641714006246,5.58906822,3129.3,3129.0,1.18623804]
[1641714007845,5.58906822,3129.3,3129.1,2.72381452]
[1641714008446,5.58906822,3129.3,3129.0,1.18623804]
[1641714008648,6.38839822,3129.3,3129.0,1.18623804]
[1641714008862,1.25733,3129.3,3129.0,1.18623804]
[1641714009690,1.25733,3129.3,3129.1,2.72381213]
[1641714009893,0.79933,3129.3,3129.1,5.72939431]
[1641714010092,0.79927,3129.5,3129.1,3.57691213]
[1641714010293,0.79927,3129.5,3129.1,5.73228401]
[1641714010691,0.79927,3129.5,3129.1,5.69913776]
[1641714010895,0.79927,3129.5,3129.1,5.70784787]
[1641714011093,0.00795793,3129.6,3129.5,1.03368508]
[1641714011303,1.596,3130.4,3129.6,16.35]
[1641714011511,6.16,3130.6,3129.7,2.3892705]
[1641714011794,0.06305931,3130.8,3129.7,2.3892705]
[1641714011795,0.00227369,3130.0,3129.8,0.3]
[1641714011993,0.00227369,3130.0,3129.8,10.6242]
[1641714012192,0.00170527,3129.9,3129.8,10.6242]
[1641714012593,0.00170527,3129.9,3129.8,11.6242]
[1641714012798,0.00170527,3129.9,3129.8,26.7242]
[1641714013256,5.27e-06,3129.9,3129.8,28.78]
[1641714013658,5.27e-06,3129.9,3129.8,50.18631836]
[1641714013854,6.16,3131.4,3129.9,16.35]
[1641714014055,6.16,3131.4,3130.8,0.79869]
[1641714014356,6.16,3131.4,3130.9,1.09302503]
[1641714014955,6.16,3131.4,3131.0,2.3892705]
[1641714015155,0.03,3132.2,3131.0,1.6]
[1641714015355,0.03,3132.2,3131.1,11.0483705]
[1641714015555,0.03,3132.2,3131.2,1.0]
[1641714015556,0.01250532,3132.1,3131.2,1.0]
[1641714015757,0.01250532,3132.1,3131.1,11.0483705]
[1641714015758,0.01250532,3132.1,3131.6,1.17094506]
[1641714015960,0.01193689,3132.0,3131.6,2.25064506]
[1641714016457,0.01136847,3131.9,3131.6,2.25064506]
[1641714016999,13.07,3132.4,3131.6,2.25064506]
[1641714017000,0.01080005,3131.8,3131.6,2.25064506]
[1641714017394,6.95859,3132.4,3131.6,2.25064506]
[1641714017395,0.01023162,3131.7,3131.6,2.25064506]
[1641714017597,0.01023162,3131.7,3131.6,4.5768109]
[1641714018797,0.01023162,3131.7,3131.6,10.75064506]
[1641714019599,0.01023162,3131.7,3131.6,4.97206948]
[1641714021251,0.01023162,3131.7,3131.6,3.80112442]
[1641714021447,0.01023162,3131.7,3131.6,2.72142442]
[1641714021747,4.21023162,3131.7,3131.6,2.72142442]
[1641714021946,4.21023162,3131.7,3131.2,4.08214124]
[1641714022246,0.0096632,3131.6,3131.1,8.04414124]
[1641714022445,0.0096632,3131.6,3131.1,9.39347466]
[1641714022646,0.00909478,3131.5,3131.1,9.39347466]
[1641714022945,0.00852635,3131.4,3131.3,2.72175582]
[1641714023746,0.00852635,3131.4,3131.3,4.8]
[1641714024145,0.00852635,3131.4,3131.2,2.72175582]
[1641714024345,0.00852635,3131.4,3131.3,2.72175582]
[1641714024599,0.458,3132.1,3131.3,2.72175582]
[1641714024796,0.79872,3131.9,3131.3,2.72175582]
[1641714024993,0.79872,3131.9,3131.2,2.72175582]
[1641714025594,1.09872,3131.9,3131.2,2.72175582]
[1641714025995,1.39872,3131.9,3131.2,2.72175582]
[1641714026194,1.09872,3131.9,3131.2,2.72175582]
[1641714026396,1.09872,3131.9,3131.2,3.93332533]
[1641714027496,1.09872,3131.9,3131.1,5.2857863]
[1641714027497,1.09872,3131.9,3131.3,2.72175582]
[1641714027996,1.09872,3131.9,3131.2,3.93332533]
[1641714028243,0.79872,3131.9,3131.2,3.93332533]
[1641714028642,0.79872,3131.9,3131.3,3.93332533]
[1641714029246,0.00341054,3132.0,3131.4,3.93332533]
[1641714029543,0.00284212,3131.9,3131.4,3.93332533]
[1641714029943,0.0022737,3131.8,3131.5,3.93332533]
[1641714030145,0.458,3132.6,3131.6,5.75]
[1641714030347,0.458,3132.6,3131.6,0.00113685]
[1641714030545,0.46254738,3132.6,3131.6,0.00113685]
[1641714030745,1.26107738,3132.6,3131.6,4.34550558]
[1641714031245,1.56107738,3132.6,3131.9,1.20249411]
[1641714031446,1.86107738,3132.6,3131.9,1.20249411]
[1641714031849,0.79861,3132.3,3131.9,1.20249411]
[1641714032101,1.09861,3132.3,3131.9,1.20249411]
[1641714032301,0.00227369,3132.2,3131.9,1.20249411]
[1641714032700,0.00170527,3132.1,3131.8,2.53683837]
[1641714033102,0.00113684,3132.0,3131.9,2.72175582]
[1641714033502,3.55113684,3132.0,3131.9,2.72175582]
[1641714033903,0.00113684,3132.0,3131.9,2.72175582]
[1641714034103,0.00113684,3132.0,3131.9,1.20249411]
[1641714034704,0.3,3132.3,3131.8,1.20249411]
[1641714035105,0.00113685,3132.2,3131.8,1.20249411]
[1641714035503,0.00170527,3132.3,3131.9,2.72175582]
[1641714035943,0.79865,3132.1,3131.9,1.20249411]
[1641714036943,0.79865,3132.1,3131.8,3.92424993]
[1641714037644,0.79865,3132.1,3131.8,1.20249411]
[1641714038047,0.79865,3132.1,3131.9,3.92424993]
[1641714038444,0.79865,3132.1,3131.9,2.72175582]
[1641714039247,0.79865,3132.1,3131.8,1.20249411]
[1641714039898,0.80030527,3132.3,3131.8,1.20249411]
[1641714040100,0.00170527,3132.3,3131.8,1.20249411]
[1641714040500,0.00170527,3132.3,3131.9,1.20249411]
[1641714041101,0.00170527,3132.3,3132.0,1.20249411]
[1641714042307,0.00170527,3132.3,3132.0,3.92424993]
[1641714042904,0.00170527,3132.3,3132.2,1.20249411]
[1641714045145,0.79853,3132.6,3132.2,1.20249411]
[1641714045344,0.458,3132.5,3132.2,1.20249411]
[1641714045645,0.45913685,3132.5,3132.1,3.92424993]
[1641714045844,1.59692,3133.0,3132.8,2.51703895]
[1641714046045,10.17261682,3132.9,3132.8,2.51703895]
[1641714046247,10.17261682,3132.9,3132.2,0.00170527]
[1641714046248,53.84403121,3132.5,3132.2,0.00170527]
[1641714046445,0.79871,3132.4,3132.2,0.00170527]
[1641714046645,2.25671,3132.4,3132.2,0.00170527]
[1641714046846,2.55671,3132.4,3132.2,0.00170527]
[1641714047297,0.798698,3132.3,3132.1,0.00227369]
[1641714047599,1.25666,3132.2,3132.1,0.00227369]
[1641714047797,1.55666,3132.2,3132.1,0.00227369]
[1641714048197,1.55666,3132.2,3132.0,0.00284212]
[1641714048596,1.25666,3132.2,3132.0,0.00284212]
[1641714048797,1.25666,3132.2,3132.1,2.72122356]
[1641714049199,1.25666,3132.2,3132.1,2.72349725]
[1641714049599,1.25666,3132.2,3132.1,0.00227369]
[1641714050001,0.79866,3132.2,3132.1,0.00227369]
[1641714050303,0.458,3132.6,3132.1,3.9298377]
[1641714050304,0.79853,3132.4,3132.1,3.9298377]
[1641714050748,0.79853,3132.4,3132.2,0.00170527]
[1641714051447,0.79853,3132.4,3132.2,3.93154297]
[1641714051847,0.79853,3132.4,3132.3,0.00113685]
[1641714052248,4.29853,3132.4,3132.3,1.20975099]
[1641714052447,0.79853,3132.4,3132.3,1.20975099]
[1641714052850,0.79853,3132.4,3132.3,0.00113685]
[1641714053247,4.19853,3132.4,3132.3,0.00113685]
[1641714053448,0.79853,3132.4,3132.3,0.00113685]
[1641714054050,0.79853,3132.4,3132.2,0.00170527]
[1641714054506,0.79853,3132.4,3132.3,1.21327071]
[1641714054902,0.79853,3132.4,3132.3,1.21440756]
[1641714055505,0.79853,3132.4,3132.3,1.62374976]
[1641714055506,0.74853,3132.4,3132.3,1.62374976]
[1641714056802,0.74853,3132.4,3132.3,0.00113685]
[1641714057203,0.74853,3132.4,3132.2,2.72122356]
[1641714057404,0.74853,3132.4,3132.3,0.00113685]
[1641714058648,0.74853,3132.4,3132.2,0.00170527]
[1641714059649,0.74853,3132.4,3132.3,1.62727316]
[1641714060047,0.74853,3132.4,3132.3,1.62841001]
[1641714060449,0.74853,3132.4,3132.3,0.00113685]
[1641714061055,0.74853,3132.4,3132.3,1.62841001]
[1641714062801,0.74853,3132.4,3132.3,0.00113685]
[1641714063212,0.74853,3132.4,3132.3,2.72211154]
[1641714063702,0.74853,3132.4,3132.3,0.00113685]
[1641714064303,0.74853,3132.4,3132.3,2.72211154]
[1641714064804,0.74853,3132.4,3132.3,0.00113685]
[1641714065205,0.74853,3132.4,3132.2,0.00170527]
[1641714065861,0.00170527,3132.8,3132.2,0.00170527]
[1641714065862,1.59866527,3132.8,3132.2,0.00170527]
[1641714066054,0.00170527,3132.8,3132.2,0.96040527]
[1641714066254,0.00113685,3132.7,3132.2,0.96040527]
[1641714066455,0.00113685,3132.7,3132.3,0.00113685]
[1641714067657,0.00113685,3132.7,3132.3,2.72211154]
[1641714068256,0.79956685,3132.7,3132.3,2.72211154]
[1641714069604,1.59808685,3132.7,3132.3,2.72211154]
[1641714069808,0.79854,3132.5,3132.3,2.72211154]
[1641714070204,0.79854,3132.5,3132.3,0.00113685]
[1641714070509,0.79854,3132.5,3132.2,0.00170527]
[1641714071908,0.79854,3132.5,3132.1,0.00227369]
[1641714073759,0.58690364,3132.3,3132.1,0.00227369]
[1641714073957,8.8067,3132.2,3132.1,0.00227369]
[1641714074159,10.1067,3132.2,3132.1,0.00227369]
[1641714074754,10.17549851,3132.2,3132.1,0.00227369]
[1641714074954,10.47549851,3132.2,3132.1,0.00227369]
[1641714075158,10.17549851,3132.2,3132.1,0.00227369]
[1641714075355,10.47549851,3132.2,3132.1,0.00227369]
[1641714076755,10.47549851,3132.2,3131.6,0.00511581]
[1641714077010,1.59764,3131.9,3131.6,0.00511581]
[1641714077204,0.458,3131.8,3131.6,0.00511581]
[1641714077404,0.758,3131.8,3131.6,0.00511581]
[1641714077703,1.758,3131.8,3131.6,0.00511581]
[1641714077904,49.84557797,3131.7,3131.6,0.00511581]
[1641714078107,51.60357797,3131.7,3131.6,0.00511581]
[1641714078305,0.7988354,3131.6,3131.3,0.00682108]
[1641714078506,0.79884,3131.5,3131.3,0.00682108]
[1641714078705,1.09884,3131.5,3131.3,0.00682108]
[1641714079606,1.09884,3131.5,3131.1,0.00795793]
[1641714080008,0.79884,3131.5,3131.2,1.22060974]
[1641714080406,0.79884,3131.5,3131.3,0.00682108]
[1641714081463,1.09884,3131.5,3131.3,0.00682108]
[1641714081658,2.09884,3131.5,3131.3,0.00682108]
[1641714082060,2.09884,3131.5,3131.3,1.22743082]
[1641714082460,2.09884,3131.5,3131.4,0.00625266]
[1641714083061,0.79884,3131.5,3131.4,0.00625266]
[1641714083262,0.79867,3131.7,3131.4,0.00625266]
[1641714084706,0.79867,3131.7,3131.4,1.2268624]
[1641714085105,0.79867,3131.7,3131.5,0.00568423]
[1641714086610,2.36077663,3131.8,3131.5,0.00568423]
[1641714086906,2.36077663,3131.8,3131.3,0.00682108]
[1641714086907,0.7987936,3131.7,3131.3,0.00682108]
[1641714087107,0.79883,3131.6,3131.3,0.00682108]
[1641714090557,0.79883,3131.6,3131.3,1.22743082]
[1641714090958,0.79883,3131.6,3131.4,0.00625266]
[1641714093303,0.79883,3131.6,3131.5,2.72135514]
[1641714093505,1.09883,3131.6,3131.5,2.72135514]
[1641714093704,3.7344808,3131.6,3131.5,2.72703937]
[1641714093905,8.75327931,3131.6,3131.5,2.72703937]
[1641714094106,5.10327931,3131.6,3131.5,2.72703937]
[1641714094507,2.46762851,3131.6,3131.5,2.72703937]
[1641714094909,8.36762851,3131.6,3131.5,2.72703937]
[1641714095509,10.97434256,3131.6,3131.5,2.72703937]
[1641714095770,11.43234256,3131.6,3131.5,2.72703937]
[1641714095966,11.43234256,3131.6,3130.9,1.22060974]
[1641714095967,6.05,3131.5,3130.9,1.22060974]
[1641714096168,0.79898,3131.2,3130.7,5.02680974]
[1641714096367,1.59795,3131.2,3131.0,0.00284212]
[1641714096567,3.19795,3131.2,3131.0,0.00284212]
[1641714097368,2.89795,3131.2,3131.0,0.00284212]
[1641714097669,0.79897,3131.1,3131.0,0.00284212]
[1641714097970,1.8979351,3131.1,3131.0,0.00284212]
[1641714098170,3.1979351,3131.1,3131.0,0.00284212]
[1641714098371,0.6,3131.0,3130.7,0.00454739]
[1641714098571,0.79899,3130.9,3130.7,0.00454739]
[1641714098772,0.79899,3130.9,3130.6,0.00511582]
[1641714099703,0.79899,3130.9,3130.6,1.22572556]
[1641714100104,0.79899,3130.9,3130.7,0.00454739]
[1641714100805,0.79899,3130.9,3130.6,0.00511582]
[1641714101404,1.09899,3130.9,3130.6,0.00511582]
[1641714101606,0.79897,3130.8,3130.6,0.00511582]
[1641714106356,1.09897,3130.8,3130.6,0.00511582]
[1641714106556,11.7266828,3130.7,3130.6,0.00511582]
[1641714106755,13.7829328,3130.7,3130.6,0.00511582]
[1641714107012,14.7829328,3130.7,3130.6,0.00511582]
[1641714107408,15.61733171,3130.7,3130.5,0.00568424]
[1641714107706,12.45333885,3130.6,3130.5,0.00568424]
[1641714107907,13.21133885,3130.6,3130.5,0.00568424]
[1641714108307,13.28013736,3130.6,3130.5,0.00568424]
[1641714108907,0.3,3130.5,3130.2,0.00738951]
[1641714109110,1.25723,3130.4,3130.0,0.00852636]
[1641714109508,2.55723,3130.4,3130.0,0.00852636]
[1641714112059,5.1591959,3130.4,3130.0,0.00852636]
[1641714112858,5.1591959,3130.4,3129.8,0.0096632]
[1641714113457,5.1591959,3130.4,3129.7,0.01023163]
[1641714114059,2.55723,3130.4,3129.7,0.01023163]
[1641714114359,49.45588265,3129.8,3129.7,0.01023163]
[1641714114612,50.25512265,3129.8,3129.7,0.01023163]
[1641714115408,0.79924,3129.8,3129.7,0.01023163]
[1641714115609,0.79924,3129.8,3129.7,4.51023163]
[1641714115808,0.79913,3130.0,3129.7,4.51023163]
[1641714116208,0.79913,3130.0,3129.8,0.0096632]
[1641714116411,0.06235768,3130.3,3129.8,2.73212813]
[1641714116809,0.79908,3130.2,3129.9,0.00909478]
[1641714117309,0.79908,3130.2,3129.9,2.73155971]
[1641714117513,0.458,3130.6,3129.9,2.73155971]
[1641714117710,0.458,3130.6,3130.0,0.00852636]
[1641714118758,0.458,3130.6,3130.1,2.72246493]
[1641714118957,0.79903,3130.4,3130.1,2.72246493]
[1641714119157,0.79903,3130.4,3130.2,0.00738951]
[1641714119362,52.83952446,3130.3,3130.2,0.00738951]